fUSD/lending_fUSD_20241109
["ID","MTS","AMOUNT","RATE_DAILY","PERIOD"]
[341723898,1731143432267,-2058.49733782,0.00027,5]
[341723899,1731143432278,-21000.00182274,0.00027,5]
[341723900,1731143432319,-694.08482248,0.00027,5]
[341723901,1731143432337,-964.46147219,0.00027,5]
[341723903,1731143437976,-2500.61635324,0.00027,5]
[341723904,1731143438087,-383.07,0.00027,5]
[341723905,1731143438318,-222908.47619462,0.00027,5]
[341723906,1731143438328,-882.65,0.00027397,10]
[341723907,1731143438337,-797.45,0.00027505,2]
[341723908,1731143438347,-797.45,0.00027947,2]
[341723909,1731143438356,-59439.88880299,0.00028043,4]
[341723910,1731143438365,-218.70944701,0.00028043,4]
[341723911,1731143438374,-9287.38,0.00028044,2]
[341723912,1731143438384,-284.17,0.00028128,120]
[341723913,1731143438393,-157.95,0.00028133,30]
[341723914,1731143438403,-797.45,0.00028389,2]
[341723915,1731143438412,-124159.42972379,0.0002848,2]
[341723916,1731143438424,-334.84102,0.0002848,2]
[341723920,1731143443075,-11653.17535709,0.0002848,2]
[341723921,1731143443085,-150.0,0.00028657,2]
[341723922,1731143443095,-150.0,0.00028657,2]
[341723923,1731143443104,-150.0,0.00028657,2]
[341723924,1731143443113,-150.0,0.00028657,2]
[341723925,1731143443123,-150.0,0.00028657,2]
[341723926,1731143443133,-150.0,0.00028657,2]
[341723927,1731143443142,-150.0,0.00028657,2]
[341723928,1731143443151,-151.85,0.00028657,2]
[341723929,1731143443161,-150.0,0.00028657,2]
[341723930,1731143443170,-150.0,0.00028657,2]
[341723931,1731143443179,-300.0,0.00028657,2]
[341723932,1731143443189,-300.0,0.00028657,2]
[341723933,1731143443197,-150.0,0.00028657,2]
[341723934,1731143443207,-150.0,0.00028657,2]
[341723935,1731143443216,-300.0,0.00028657,2]
[341723936,1731143443225,-154.97,0.00028657,2]
[341723937,1731143443234,-150.0,0.00028657,2]
[341723938,1731143443243,-217.5,0.00028657,2]
[341723939,1731143443252,-150.0,0.00028657,2]
[341723940,1731143443261,-150.0,0.00028657,2]
[341723941,1731143443271,-150.0,0.00028657,2]
[341723942,1731143443280,-150.0,0.00028657,2]
[341723943,1731143443291,-150.0,0.00028657,2]
[341723944,1731143443300,-1079.94861694,0.000288,2]
[341723945,1731143443309,-169.65194825,0.000288,2]
[341723946,1731143443319,-797.45,0.00028831,2]
[341723947,1731143443328,-1079.94861693,0.000289,2]
[341723948,1731143443337,-1308.3613,0.000289,2]
[341723949,1731143443346,-710.07732,0.000289,2]
[341723950,1731143443357,-37827.5615,0.000289,2]
[341723951,1731143443368,-2500.0,0.000289,2]
[341723952,1731143443378,-82491.2732,0.000289,2]
[341723953,1731143443388,-193.86955363,0.000289,2]
[341723954,1731143443398,-27326.4733,0.000289,2]
[341723955,1731143443409,-463.85,0.0002893,2]
[341723956,1731143443419,-500.0,0.00028973,5]
[341723957,1731143443429,-504.03366611,0.00028973,5]
[341723958,1731143443441,-244.61150262,0.0002899,2]
[341723959,1731143443450,-95060.53243801,0.00029,2]
[341723963,1731143443589,-3672.89361877,0.00029,2]
[341723975,1731143446067,-150.0,0.00028657,2]
[341723976,1731143446078,-150.0,0.00028657,2]
[341723977,1731143446088,-465.665825,0.00029,2]
[341723978,1731143446251,-60580.0,0.00029,2]
[341723979,1731143452217,372.93,0.00026669,2]
[341723983,1731143625589,2038.86866639,0.00025,120]
[341723985,1731143702127,180.0,0.00019725,2]
[341723986,1731143718347,156.38,0.00016712,2]
[341723987,1731143748246,159.35,0.00015342,2]
[341723988,1731143912245,179.49,0.00027,60]
[341723990,1731144062060,300.0,0.00019725,2]
[341723991,1731144181978,300.0,0.00019725,2]
[341723993,1731144308860,8019.7,0.00016,2]
[341723994,1731144308892,48830.96,0.00016,2]
[341723995,1731144308919,18000.0,0.00016,2]
[341723996,1731144308944,1389479.2369838,0.00016,2]
[341723997,1731144335148,-203.5965,0.00020398,2]
[341723998,1731144335173,-155.21025,0.00020398,2]
[341723999,1731144335196,-237.97691212,0.00021,2]
[341724000,1731144430587,450.0,0.000153,2]
[341724001,1731144446099,-725.0,0.000206,2]
[341724002,1731144446125,-212.02308788,0.00021,2]
[341724003,1731144446148,-500.0,0.00023,2]
[341724004,1731144446171,-221.52554245,0.00023999,2]
[341724005,1731144446193,-73.91559612,0.00025,2]
[341724006,1731144481365,300.0,0.00019725,2]
[341724015,1731144546216,-476.08440388,0.00025,2]
[341724016,1731144546240,-609.78,0.00025093,2]
[341724017,1731144550117,-6196.46469269,0.00026238,2]
[341724030,1731144557138,-1966.53530731,0.00026238,2]
[341724031,1731144557160,-3919.86,0.00026497,2]
[341724032,1731144557182,-6578.12,0.00026497,10]
[341724033,1731144557204,-999.99,0.00026497,2]
[341724034,1731144557225,-200.0,0.00026917,2]
[341724035,1731144557250,-578.42227888,0.00026923,2]
[341724036,1731144573491,2495.910354,0.00026398,2]
[341724037,1731144573514,2950.925586,0.00026398,2]
[341724049,1731144632241,-2519.84998623,0.00026923,2]
[341724050,1731144632418,-821.58773489,0.00026923,2]
[341724051,1731144632427,-187.48,0.00026944,2]
[341724052,1731144632437,-150.0,0.00026946,2]
[341724053,1731144632446,-1755.63,0.00026946,2]
[341724054,1731144632455,-1000.0,0.00026947,2]
[341724055,1731144632465,-4255.64,0.0002697,2]
[341724056,1731144632474,-2238.5,0.00026973,2]
[341724057,1731144632483,-550.07,0.00026982,2]
[341724058,1731144632492,-615.33,0.00026983,2]
[341724059,1731144632502,-600.0,0.00027,2]
[341724060,1731144632519,-2751.0,0.00027003,2]
[341724061,1731144632528,-240.9,0.00027019,2]
[341724062,1731144632537,-168.98,0.00027032,2]
[341724063,1731144632546,-168.71,0.0002705,2]
[341724064,1731144632555,-356.4,0.00027053,2]
[341724065,1731144632564,-250.0,0.00027069,2]
[341724066,1731144632573,-785.31,0.00027081,2]
[341724067,1731144632583,-284.2,0.00027155,120]
[341724068,1731144632591,-2389.86454508,0.00027155,2]
[341724069,1731144632603,-590.48194387,0.00027155,2]
[341724070,1731144632620,-5482.29999996,0.00027155,2]
[341724071,1731144632633,-5490.0362782,0.00027155,2]
[341724072,1731144632668,-758.99867757,0.00027155,2]
[341724073,1731144632682,-631.62901707,0.00027155,2]
[341724074,1731144632695,-4356.96953825,0.00027155,2]
[341724075,1731144632706,-200.0,0.00027176,2]
[341724076,1731144632717,-150.0,0.00027237,2]
[341724077,1731144632729,-185.16,0.00027237,2]
[341724078,1731144632739,-156.68,0.00027317,30]
[341724079,1731144632749,-250.0,0.00027331,2]
[341724080,1731144632760,-3919.86,0.00027349,2]
[341724081,1731144632769,-609.78,0.00027357,2]
[341724082,1731144632778,-150.0,0.00027397,7]
[341724083,1731144632787,-854.29,0.00027474,2]
[341724084,1731144632797,-4611.60356337,0.000275,2]
[341724085,1731144632808,-185.11,0.0002752,2]
[341724086,1731144632820,-4249.0,0.00027761,2]
[341724087,1731144632830,-3919.86,0.00027775,2]
[341724088,1731144632840,-432.91,0.00027835,2]
[341724089,1731144632850,-150.03,0.00027967,2]
[341724090,1731144632860,-150.03,0.00027983,2]
[341724091,1731144632870,-150.03,0.00027999,2]
[341724092,1731144632880,-150.03,0.00028016,2]
[341724093,1731144632889,-150.03,0.00028032,2]
[341724094,1731144632899,-150.03,0.00028049,2]
[341724095,1731144632909,-150.03,0.00028065,2]
[341724096,1731144632919,-150.03,0.00028082,2]
[341724097,1731144632929,-150.03,0.00028098,2]
[341724098,1731144632938,-150.03,0.00028114,2]
[341724099,1731144632947,-150.03,0.00028131,2]
[341724100,1731144632955,-150.03,0.00028147,2]
[341724101,1731144632964,-150.03,0.00028164,2]
[341724102,1731144632974,-150.03,0.0002818,2]
[341724103,1731144632983,-150.03,0.00028197,2]
[341724104,1731144632992,-3919.86,0.000282,2]
[341724105,1731144633001,-150.03,0.00028213,2]
[341724106,1731144633011,-150.03,0.0002823,2]
[341724107,1731144633020,-150.03,0.00028246,2]
[341724108,1731144633029,-336.25712948,0.00028295,2]
[341724109,1731144633038,-356.4,0.00028406,2]
[341724110,1731144633047,-966.36,0.00028493,2]
[341724111,1731144633057,-336.25712948,0.00028624,2]
[341724112,1731144633066,-3919.86,0.00028626,2]
[341724113,1731144633075,-432.91,0.00028657,2]
[341724114,1731144633281,-432.91,0.00028657,2]
[341724115,1731144633295,-865.49,0.00028657,2]
[341724116,1731144633305,-424.92,0.00028657,2]
[341724117,1731144633315,-301.78,0.00028659,2]
[341724118,1731144633324,-150.0,0.00028659,2]
[341724119,1731144633333,-150.0,0.00028659,2]
[341724120,1731144633344,-150.0,0.00028659,2]
[341724121,1731144633353,-150.0,0.00028659,2]
[341724122,1731144633362,-2017.9943,0.000287,2]
[341724123,1731144633370,-4860.1242,0.000287,2]
[341724124,1731144633379,-216.3619,0.000287,2]
[341724125,1731144633389,-263.3692,0.000287,2]
[341724126,1731144633398,-1116.8887,0.000287,2]
[341724127,1731144633407,-150.0,0.00028731,2]
[341724128,1731144633416,-1357.39869932,0.00028736,2]
[341724129,1731144633426,-1357.39869932,0.00028736,2]
[341724130,1731144633435,-150.0,0.0002874,2]
[341724131,1731144633444,-240.50324704,0.00028754,2]
[341724132,1731144633453,-500.0,0.00028754,2]
[341724133,1731144633463,-500.0,0.00028754,2]
[341724134,1731144633472,-500.0,0.00028754,2]
[341724135,1731144633481,-150.0,0.00028755,2]
[341724136,1731144633491,-150.0,0.00028763,2]
[341724137,1731144633500,-4231.0708,0.00028799,2]
[341724138,1731144633510,-2848.39822009,0.00028799,2]
[341724139,1731144633518,-200.0,0.000288,10]
[341724140,1731144633527,-2500.0,0.000288,2]
[341724141,1731144633536,-457.3226427,0.000288,2]
[341724142,1731144633545,-195.30146307,0.000288,2]
[341724143,1731144633554,-150.0,0.00028802,2]
[341724144,1731144633563,-196265.11629089,0.0002882,2]
[341724145,1731144633572,-242.35869755,0.0002882,2]
[341724146,1731144633581,-196265.11629089,0.00028821,2]
[341724147,1731144633591,-150.0,0.00028821,2]
[341724148,1731144633600,-29508.15657441,0.00028823,2]
[341724149,1731144633609,-7049.33663494,0.00028823,2]
[341724150,1731144633618,-1053.62693033,0.00028833,2]
[341724151,1731144633627,-15529.38914887,0.00028833,2]
[341724152,1731144633657,-500.0,0.00028754,2]
[341724153,1731144633668,-425.23875809,0.00028754,2]
[341724154,1731144633678,-13978.76742554,0.00028833,2]
[341724155,1731144633687,-445735.17809613,0.00028835,2]
[341724156,1731144633698,-10482.16501476,0.00028835,2]
[341724157,1731144633713,-7221.06129011,0.00028835,2]
[341724163,1731144638237,-250.0,0.00027032,2]
[341724164,1731144638247,-181.31,0.00028811,10]
[341724165,1731144638256,-278.69,0.00028835,2]
[341724166,1731144638462,-651.73811856,0.00028835,2]
[341724167,1731144638473,-196822.52797379,0.00028835,2]
[341724168,1731144638523,-369.63,0.00028835,2]
[341724169,1731144638534,-1111.38786453,0.00028835,2]
[341724170,1731144638549,-6803.53728129,0.00028835,2]
[341724171,1731144638559,-150.0,0.00028836,2]
[341724172,1731144638568,-22233.00489262,0.00028837,2]
[341724173,1731144638580,-3880.45995291,0.00028842,2]
[341724174,1731144638591,-8355.461751,0.00028842,2]
[341724175,1731144638603,-17272.2348705,0.00028842,2]
[341724176,1731144638612,-20343.7985575,0.00028849,2]
[341724258,1731144640378,-258.07883727,0.00028849,2]
[341724259,1731144640390,-1367.4579119,0.00028849,2]
[341724260,1731144640414,-25250.67358694,0.00028849,2]
[341724270,1731144643867,-57090.70891294,0.00028849,2]
[341724271,1731144644003,-267885.13831958,0.00028849,2]
[341724272,1731144644016,-297280.05951304,0.00028849,2]
[341724273,1731144644026,-22233.00489262,0.0002885,2]
[341724274,1731144644036,-1053.62693033,0.00028854,2]
[341724275,1731144644046,-196265.11629089,0.00028856,2]
[341724276,1731144644056,-196265.11629089,0.00028857,2]
[341724277,1731144644217,-196265.11629089,0.00028857,2]
[341724278,1731144644357,-29508.15657441,0.00028859,2]
[341724279,1731144644492,-7049.33663494,0.0002886,2]
[341724280,1731144644602,-669475.91563917,0.00028861,2]
[341724281,1731144644692,-22233.00489262,0.00028861,2]
[341724282,1731144644794,-1053.62693033,0.00028864,2]
[341724283,1731144644884,-29508.15657441,0.00028865,2]
[341724284,1731144645017,-1053.62693033,0.00028866,2]
[341724285,1731144645129,-7049.33663494,0.00028867,2]
[341724286,1731144645186,-22233.00489262,0.00028868,2]
[341724287,1731144645196,-669475.91563917,0.00028869,2]
[341724288,1731144645206,-22233.00489262,0.00028873,2]
[341724289,1731144645216,-150.0,0.00028874,2]
[341724290,1731144645225,-150.0,0.00028878,2]
[341724291,1731144645235,-542916.33925296,0.00028879,2]
[341724292,1731144645247,-126559.57638621,0.00028879,2]
[341724293,1731144645258,-150.0,0.00028883,2]
[341724294,1731144645274,-1053.62693033,0.00028885,2]
[341724296,1731144645283,-29508.15657441,0.00028886,2]
[341724298,1731144645293,-196265.11629089,0.00028886,2]
[341724300,1731144645303,-7049.33663494,0.00028888,2]
[341724302,1731144645313,-242.35869755,0.00028888,2]
[341724303,1731144645323,-22233.00489262,0.00028889,2]
[341724304,1731144645333,-416.38773469,0.0002889,2]
[341724305,1731144645345,-7049.33663494,0.00028892,2]
[341724307,1731144645355,-7049.33663494,0.00028895,2]
[341724310,1731144645365,-134409.98268278,0.00028896,2]
[341724316,1731144645413,-66.30929587,0.00028896,2]
[341724319,1731144645436,-9821.8397512,0.00028896,2]
[341724321,1731144645447,-40467.09743163,0.00028896,2]
[341724445,1731144646437,-2500.0,0.000288,2]
[341724447,1731144646448,-14191.09866511,0.00028896,2]
[341724456,1731144646541,-764.81067,0.00028896,2]
[341724475,1731144646730,-192.50463545,0.00028896,2]
[341724490,1731144646872,-34245.60764347,0.00028896,2]
[341724493,1731144646884,-3828.05,0.00028896,2]
[341724770,1731144649705,151.04,0.00015342,2]
[341724795,1731144649938,151.04,0.00023452,2]
[341724867,1731144841218,300.0,0.00019725,2]
[341724868,1731144901978,300.0,0.00019725,2]
[341724869,1731144921557,-662.63,0.00025671,2]
[341724873,1731145431651,156.68,0.00015342,2]
[341724874,1731145533109,-179.45990516,0.000212,2]
[341724876,1731145637091,-677.54009484,0.000212,2]
[341724877,1731145637112,-433.2756406,0.00025142,2]
[341724878,1731145652922,-196.2143594,0.00025142,2]
[341724879,1731145652945,-156.68,0.00025479,2]
[341724880,1731145652968,-742.51017287,0.00026898,2]
[341724881,1731145733756,-450.0,0.00021,2]
[341724882,1731145746067,-500.0,0.00023,2]
[341724883,1731145746088,-550.0,0.00025,2]
[341724886,1731145755145,-2002.41982713,0.00026898,2]
[341724902,1731145831362,2521.83,0.00026383,2]
[341724903,1731145831448,-250.0,0.00026997,2]
[341724904,1731145831459,-48.59,0.00027,2]
[341724905,1731145831470,-551.41,0.00027,2]
[341724906,1731145831480,-3076.86,0.00027,2]
[341724907,1731145831490,-7051.32686932,0.00027015,2]
[341724908,1731145831499,-250.0,0.00027015,2]
[341724909,1731145831509,-150.99,0.00027015,2]
[341724910,1731145831519,-2796.54,0.00027015,2]
[341724911,1731145831528,-163.72,0.00027017,2]
[341724912,1731145831537,-736.47,0.00027017,2]
[341724913,1731145831546,-429.95,0.00027038,2]
[341724914,1731145831556,-200.0,0.00027042,2]
[341724915,1731145831566,-250.0,0.00027054,2]
[341724916,1731145831575,-157.0,0.00027166,30]
[341724917,1731145831585,-1852.42,0.0002726,2]
[341724918,1731145831595,-158.67,0.0002726,2]
[341724919,1731145831604,-158.67,0.00027279,2]
[341724920,1731145831615,-158.67,0.00027299,2]
[341724921,1731145831624,-15532.05,0.00027302,2]
[341724922,1731145831634,-227.34,0.00027302,120]
[341724923,1731145831643,-1000.0,0.00027306,2]
[341724924,1731145831653,-3193.8,0.00027317,2]
[341724925,1731145831662,-158.67,0.00027318,2]
[341724926,1731145831671,-362.27,0.00027328,2]
[341724927,1731145831680,-158.67,0.00027338,2]
[341724928,1731145831690,-158.67,0.00027357,2]
[341724929,1731145831700,-158.67,0.00027377,2]
[341724930,1731145831709,-158.67,0.00027396,2]
[341724931,1731145831719,-629.49,0.00027405,2]
[341724932,1731145831728,-158.67,0.00027416,2]
[341724933,1731145831737,-158.67,0.00027435,2]
[341724934,1731145831747,-158.67,0.00027455,2]
[341724935,1731145831756,-158.67,0.00027474,2]
[341724936,1731145831766,-158.67,0.00027494,2]
[341724937,1731145831775,-185.16,0.00027501,2]
[341724938,1731145831784,-158.67,0.00027513,2]
[341724939,1731145831794,-185.12,0.00027532,2]
[341724940,1731145831803,-158.67,0.00027533,2]
[341724941,1731145831813,-297.87,0.00027542,2]
[341724942,1731145831822,-164.56,0.00027696,2]
[341724943,1731145831832,-168.55,0.00027828,2]
[341724944,1731145831841,-572.66,0.00027906,120]
[341724945,1731145831850,-1000.0,0.00028,10]
[341724946,1731145831859,-160.19,0.0002801,2]
[341724947,1731145831868,-160.19,0.0002805,2]
[341724948,1731145831877,-160.19,0.0002809,2]
[341724949,1731145831887,-160.19,0.0002813,2]
[341724950,1731145831896,-160.19,0.0002817,2]
[341724951,1731145831905,-160.19,0.0002821,2]
[341724952,1731145831914,-762.33,0.00028219,2]
[341724953,1731145831923,-427.88,0.00028219,2]
[341724954,1731145831932,-427.88,0.00028219,2]
[341724955,1731145831941,-762.33,0.00028219,2]
[341724956,1731145831951,-762.33,0.00028219,2]
[341724957,1731145831961,-427.88,0.00028219,2]
[341724958,1731145831970,-426.8,0.00028219,2]
[341724959,1731145831979,-762.33,0.00028219,2]
[341724960,1731145831989,-762.33,0.00028219,2]
[341724961,1731145831999,-762.33,0.00028219,2]
[341724962,1731145832008,-762.33,0.00028219,2]
[341724963,1731145832018,-762.33,0.00028219,2]
[341724964,1731145832028,-762.33,0.00028219,2]
[341724965,1731145832037,-152.0,0.00028226,3]
[341724966,1731145832046,-160.19,0.0002825,2]
[341724967,1731145832056,-160.19,0.0002829,2]
[341724968,1731145832065,-463.85,0.00028493,2]
[341724969,1731145832074,-150.0,0.00028493,2]
[341724970,1731145832084,-150.0,0.00028493,2]
[341724971,1731145832094,-150.0,0.00028493,2]
[341724972,1731145832102,-150.0,0.00028493,2]
[341724973,1731145832112,-150.0,0.00028493,2]
[341724974,1731145832122,-150.0,0.00028493,2]
[341724975,1731145832131,-150.0,0.00028493,2]
[341724976,1731145832141,-150.0,0.00028493,2]
[341724977,1731145832151,-150.0,0.00028493,2]
[341724978,1731145832161,-150.0,0.00028493,2]
[341724979,1731145832171,-150.0,0.00028493,2]
[341724980,1731145832182,-150.0,0.00028493,2]
[341724981,1731145832194,-150.0,0.00028493,2]
[341724982,1731145832203,-150.0,0.00028493,2]
[341724983,1731145832213,-150.0,0.00028493,2]
[341724984,1731145832223,-150.0,0.00028493,2]
[341724985,1731145832234,-150.0,0.00028493,2]
[341724986,1731145832245,-150.0,0.00028493,2]
[341724987,1731145832258,-150.0,0.00028493,2]
[341724988,1731145832269,-150.0,0.00028493,2]
[341724989,1731145832278,-150.0,0.00028493,2]
[341724990,1731145832288,-150.0,0.00028493,2]
[341724991,1731145832297,-150.0,0.00028493,2]
[341724992,1731145832306,-150.0,0.00028493,2]
[341724993,1731145832316,-378.24,0.00028657,2]
[341724994,1731145832325,-362.09,0.00028657,2]
[341724995,1731145832334,-436.03,0.00028657,2]
[341724996,1731145832344,-362.09,0.00028657,2]
[341724997,1731145832354,-432.91,0.00028659,2]
[341724998,1731145832363,-432.91,0.00028659,2]
[341724999,1731145832372,-432.51,0.00028659,2]
[341725000,1731145832381,-216.98,0.00028685,2]
[341725001,1731145832391,-362.27,0.00028694,2]
[341725002,1731145832399,-2677.3336,0.000287,2]
[341725003,1731145832409,-283.7136,0.000287,2]
[341725004,1731145832418,-1000.0,0.000287,2]
[341725005,1731145832427,-2563.55839809,0.000287,2]
[341725006,1731145832436,-2500.0,0.000287,2]
[341725007,1731145832447,-18075.8631,0.000287,2]
[341725008,1731145832456,-191.49602615,0.000287,2]
[341725009,1731145832465,-150.0,0.00028731,2]
[341725010,1731145832475,-198.16448463,0.00028738,2]
[341725011,1731145832484,-205.0,0.0002874,2]
[341725012,1731145832493,-300.0,0.00028749,2]
[341725013,1731145832503,-150.0,0.00028755,2]
[341725014,1731145832512,-150.0,0.00028762,2]
[341725015,1731145832521,-864.7823,0.00028767,10]
[341725016,1731145832531,-500.0,0.00028773,5]
[341725017,1731145832540,-500.0,0.00028773,5]
[341725018,1731145832549,-202.2563744,0.00028773,2]
[341725019,1731145832558,-157.34,0.00028789,3]
[341725020,1731145832568,-378.77331823,0.00028797,2]
[341725021,1731145832578,-21235.58945482,0.00028797,2]
[341725022,1731145832587,-381.2359,0.00028799,2]
[341725023,1731145832596,-2950.0209,0.00028799,2]
[341725024,1731145832606,-500.0,0.00028799,2]
[341725025,1731145832615,-500.0,0.00028799,2]
[341725026,1731145832624,-500.0,0.00028799,2]
[341725027,1731145832633,-500.0,0.00028799,2]
[341725028,1731145832643,-500.0,0.00028799,2]
[341725029,1731145832652,-500.0,0.00028799,2]
[341725030,1731145832662,-500.0,0.00028799,2]
[341725031,1731145832672,-500.0,0.00028799,2]
[341725032,1731145832681,-500.0,0.00028799,2]
[341725033,1731145832690,-500.0,0.00028799,2]
[341725034,1731145832701,-500.0,0.00028799,2]
[341725035,1731145832712,-500.0,0.00028799,2]
[341725036,1731145832721,-500.0,0.00028799,2]
[341725037,1731145832731,-500.0,0.00028799,2]
[341725038,1731145832740,-500.0,0.00028799,2]
[341725039,1731145832749,-380.20374599,0.00028799,2]
[341725040,1731145832758,-500.0,0.00028799,2]
[341725041,1731145832768,-500.0,0.00028799,2]
[341725042,1731145832777,-4625.88732377,0.00028799,2]
[341725043,1731145832786,-2019.11,0.00028799,2]
[341725044,1731145832799,-2019.11,0.00028799,2]
[341725045,1731145832808,-2019.11,0.00028799,2]
[341725046,1731145832817,-2019.11,0.00028799,2]
[341725047,1731145832826,-2019.11,0.00028799,2]
[341725048,1731145832836,-2019.11,0.00028799,2]
[341725049,1731145832846,-2019.11,0.00028799,2]
[341725050,1731145832856,-2019.11,0.00028799,2]
[341725051,1731145832866,-2019.11,0.00028799,2]
[341725052,1731145832875,-2019.11,0.00028799,2]
[341725053,1731145832884,-2019.11,0.00028799,2]
[341725054,1731145832893,-2019.11,0.00028799,2]
[341725055,1731145832903,-2019.11,0.00028799,2]
[341725056,1731145832912,-2019.11,0.00028799,2]
[341725057,1731145832921,-2019.11,0.00028799,2]
[341725058,1731145832931,-2019.11,0.00028799,2]
[341725059,1731145832940,-2019.11,0.00028799,2]
[341725060,1731145832950,-2019.11,0.00028799,2]
[341725061,1731145832960,-2019.11,0.00028799,2]
[341725062,1731145832969,-2019.11,0.00028799,2]
[341725063,1731145832978,-2019.11,0.00028799,2]
[341725064,1731145832987,-2019.11,0.00028799,2]
[341725065,1731145832997,-2019.11,0.00028799,2]
[341725066,1731145833006,-2019.12669456,0.00028799,2]
[341725067,1731145833015,-4479.53626617,0.00028799,2]
[341725068,1731145833025,-500.0,0.000288,2]
[341725069,1731145833034,-1359.2395,0.000288,2]
[341725070,1731145833044,-17999.07898404,0.000288,2]
[341725071,1731145833089,1036.8559544,0.00026807,2]
[341725072,1731145833110,1484.9740456,0.00026807,2]
[341725073,1731145833139,-269.47097312,0.00028699,2]
[341725074,1731145833149,-38.36242688,0.000288,2]
[341725075,1731145833212,-121.71161473,0.000288,2]
[341725076,1731145833456,169.422,0.00020398,2]
[341725077,1731145835758,2109.4625,0.00020558,2]
[341725078,1731145837390,-2521.83,0.00027231,2]
[341725079,1731145837400,-2521.83,0.00027655,2]
[341725080,1731145837410,-338.636625,0.00028079,2]
[341725081,1731145837423,-2183.193375,0.00028079,2]
[341725082,1731145837432,-2521.83,0.00028503,2]
[341725083,1731145837442,-1194.864845,0.000287,2]
[341725084,1731145837496,-1305.135155,0.000287,2]
[341725085,1731145837506,-131699.76847435,0.000288,2]
[341725086,1731145837515,-1000.0,0.000288,2]
[341725087,1731145837525,-30317.8268,0.000288,2]
[341725088,1731145837534,-1308.3613,0.000288,2]
[341725089,1731145837544,-31191.43624444,0.000288,2]
[341725090,1731145837620,-278.50366273,0.000288,2]
[341725092,1731145839433,-126.47773777,0.000288,2]
[341725095,1731145842745,-25.44177828,0.00028773,5]
[341725096,1731145842819,-474.55822172,0.00028773,5]
[341725097,1731145842829,-28607.80177828,0.000288,2]
[341725111,1731145845440,-1445.82896777,0.000287,2]
[341725112,1731145845654,-4094.52994525,0.000287,2]
[341725113,1731145845757,-6976.63884375,0.000287,2]
[341725121,1731145905298,268.02,0.00026558,2]
[341725122,1731145949372,537.0,0.000212,2]
[341725123,1731145949824,510.0,0.000212,2]
[341725124,1731145952210,169.422,0.00020715,2]
[341725125,1731145954208,254.132,0.00020711,2]
[341725128,1731146261045,171.36,0.00015342,2]
[341725129,1731146318846,150.0,0.0002,2]
[341725131,1731146759110,-459.32167529,0.00024,3]
[341725134,1731146850168,-2547.78791268,0.00024,3]
[341725135,1731146850193,-916.33746749,0.00024,5]
[341725136,1731146946099,-3984.66088932,0.00024,5]
[341725137,1731146946122,-770.56,0.00025503,2]
[341725138,1731146946145,-905.53,0.00026642,2]
[341725146,1731146950111,-250.0,0.00026971,2]
[341725169,1731147031735,-370.25,0.00027002,2]
[341725170,1731147031745,-368.23,0.00027015,2]
[341725171,1731147031754,-217.36,0.0002704,2]
[341725172,1731147031764,-803.74,0.0002704,2]
[341725173,1731147031773,-171.91,0.0002704,2]
[341725174,1731147031783,-999.99,0.0002704,2]
[341725175,1731147031793,-458.12,0.00027056,120]
[341725176,1731147031803,-1000.0,0.00027059,2]
[341725177,1731147031812,-905.53,0.0002707,2]